[Event "SS Manhem Chess Week 2019 Goteborg Open"]
[Site "Molnlycke kulturhus, Biblioteksgatan 2, Molnlycke, Sweden"]
[Date "2019.08.18"]
[Round "8.11"]
[White "Olsson, William"]
[Black "Welin, Mats"]
[Result "0-1"]
[TimeControl "15 minutes + 5 seconds per move from move one (Round 1 - 4) / 90 minutes + 30 seconds per move from move one (Round 5 - 8)"]
[BlackTitle "FM"]
[WhiteFideId "1741721"]
[BlackFideId "1705180"]
[WhiteElo "2015"]
[BlackElo "2310"]

1. c4 {[%clk 01:30:58]} {[%emt 00:00:01]} Nf6 {[%clk 01:30:39]} {[%emt
00:00:21]} 2. Nc3 {[%clk 01:31:23]} {[%emt 00:00:05]} e6 {[%clk 01:30:46]}
{[%emt 00:00:22]} 3. d4 {[%clk 01:31:41]} Bb4 {[%clk 01:31:08]} {[%emt
00:00:21]} 4. Qc2 {[%emt 00:00:09]} O-O {[%clk 01:31:24]} {[%emt 00:00:13]} 5.
Bd2 {[%emt 00:00:23]} d5 {[%emt 00:00:35]} 6. e3 {[%clk 01:32:27]} {[%emt
00:00:09]} c5 {[%clk 01:31:35]} {[%emt 00:00:18]} 7. dxc5 {[%clk 01:32:06]}
{[%emt 00:00:50]} Nc6 {[%clk 01:31:41]} {[%emt 00:00:24]} 8. Nf3 {[%clk
01:32:09]} {[%emt 00:00:27]} Bxc5 {[%clk 01:31:38]} {[%emt 00:00:33]} 9. a3
{[%clk 01:31:12]} {[%emt 00:01:28]} d4 {[%clk 01:29:18]} {[%emt 00:02:50]} 10.
exd4 {[%clk 01:31:30]} {[%emt 00:00:12]} Nxd4 {[%clk 01:29:36]} {[%emt
00:00:12]} 11. Nxd4 {[%clk 01:31:53]} {[%emt 00:00:06]} Qxd4 {[%clk 01:30:00]}
{[%emt 00:00:07]} 12. Be3 {[%clk 01:32:15]} {[%emt 00:00:08]} Qe5 {[%clk
01:30:24]} {[%emt 00:00:06]} 13. Qe2 {[%clk 01:30:38]} {[%emt 00:02:06]} Bxe3
{[%clk 01:30:01]} {[%emt 00:00:53]} 14. Qxe3 {[%clk 01:31:02]} {[%emt
00:00:07]} Qxe3+ {[%clk 01:30:10]} {[%emt 00:00:21]} 15. fxe3 {[%clk 01:31:27]}
{[%emt 00:00:05]} Bd7 {[%clk 01:29:55]} {[%emt 00:00:44]} 16. Be2 {[%clk
01:26:35]} {[%emt 00:05:23]} Rfd8 {[%clk 01:25:46]} {[%emt 00:04:38]} 17. Bf3
{[%clk 01:25:52]} {[%emt 00:01:12]} Rac8 {[%clk 01:25:52]} {[%emt 00:00:25]} 18.
b3 {[%clk 01:17:51]} {[%emt 00:08:31]} Bc6 {[%clk 01:24:45]} {[%emt 00:01:36]}
19. Ke2 {[%clk 01:17:29]} {[%emt 00:00:53]} Kf8 {[%clk 01:19:31]} {[%emt
00:05:44]} 20. Rhd1 {[%clk 01:13:38]} {[%emt 00:04:21]} Ke7 {[%clk 01:19:39]}
{[%emt 00:00:21]} 21. Rd4 {[%clk 01:06:56]} {[%emt 00:07:12]} g5 {[%clk
01:16:48]} {[%emt 00:03:21]} 22. Rad1 {[%clk 01:06:15]} {[%emt 00:01:11]} Rg8
{[%clk 01:15:32]} {[%emt 00:01:46]} 23. Bxc6 {[%clk 00:55:17]} {[%emt
00:11:29]} Rxc6 {[%emt 00:16:13]} 24. e4 {[%clk 00:42:06]} {[%emt 00:01:15]}
Rc5 {[%clk 01:07:41]} {[%emt 00:05:03]} 25. R1d2 {[%clk 00:39:54]} {[%emt
00:02:37]} Rgc8 {[%clk 01:04:41]} {[%emt 00:03:36]} 26. Nd1 {[%clk 00:36:02]}
{[%emt 00:04:22]} e5 {[%clk 01:01:55]} {[%emt 00:03:15]} 27. R4d3 {[%clk
00:35:33]} {[%emt 00:00:58]} Nxe4 {[%clk 01:02:01]} {[%emt 00:00:23]} 28. Rd7+
{[%clk 00:35:52]} {[%emt 00:00:11]} Ke6 {[%clk 01:01:47]} {[%emt 00:00:45]} 29.
R2d3 {[%clk 00:35:59]} {[%emt 00:00:22]} R5c7 {[%clk 01:00:57]} {[%emt
00:01:20]} 30. R7d5 {[%clk 00:36:14]} {[%emt 00:00:15]} f6 {[%clk 00:54:35]}
{[%emt 00:06:52]} 31. Ne3 {[%clk 00:34:53]} {[%emt 00:01:51]} Nc5 {[%clk
00:52:24]} {[%emt 00:02:41]} 32. Rc3 {[%clk 00:35:03]} {[%emt 00:00:19]} h5
{[%clk 00:47:13]} {[%emt 00:05:42]} 33. b4 {[%clk 00:34:49]} {[%emt 00:00:45]}
Na4 {[%clk 00:41:35]} {[%emt 00:06:08]} 34. Rc2 {[%clk 00:31:56]} {[%emt
00:03:16]} Nb6 {[%clk 00:38:22]} {[%emt 00:03:50]} 35. Ra5 {[%clk 00:32:21]}
{[%emt 00:00:05]} Nxc4 {[%clk 00:37:26]} {[%emt 00:01:26]} 36. Nxc4 {[%clk
00:32:25]} {[%emt 00:00:25]} Rxc4 {[%clk 00:37:52]} {[%emt 00:00:05]} 37. Rxc4
{[%clk 00:32:50]} {[%emt 00:00:04]} Rxc4 {[%clk 00:38:17]} {[%emt 00:00:06]} 38.
Rxa7 {[%clk 00:33:15]} {[%emt 00:00:04]} Rc2+ {[%clk 00:38:22]} {[%emt
00:00:25]} 39. Kf1 {[%clk 00:33:38]} {[%emt 00:00:08]} Ra2 {[%clk 00:38:21]}
{[%emt 00:00:31]} 40. Rxb7 {[%clk 00:33:30]} {[%emt 00:00:38]} Rxa3 {[%clk
00:38:40]} {[%emt 00:00:12]} 41. b5 {[%clk 00:33:25]} {[%emt 00:00:35]} Rb3
{[%clk 00:39:01]} {[%emt 00:00:09]} 42. Rb6+ {[%clk 00:32:56]} {[%emt
00:00:59]} Kf5 {[%clk 00:39:09]} {[%emt 00:00:21]} 43. Rb8 {[%clk 00:31:58]}
{[%emt 00:01:29]} Kf4 {[%clk 00:38:31]} {[%emt 00:01:08]} 44. b6 {[%clk
00:32:19]} {[%emt 00:00:10]} Ke3 {[%clk 00:37:13]} {[%emt 00:01:48]} 45. g3
{[%clk 00:32:30]} {[%emt 00:00:19]} e4 {[%clk 00:37:06]} {[%emt 00:00:37]} 46.
b7 {[%clk 00:31:32]} {[%emt 00:01:29]} Kf3 {[%clk 00:37:02]} {[%emt 00:00:33]}
47. Ke1 {[%clk 00:31:29]} {[%emt 00:00:33]} e3 {[%clk 00:37:21]} {[%emt
00:00:11]} 48. Kd1 {[%clk 00:31:50]} {[%emt 00:00:09]} e2+ {[%clk 00:36:48]}
{[%emt 00:01:04]} 49. Kc2 {[%clk 00:32:15]} {[%emt 00:00:05]} Rb6 {[%clk
00:35:29]} {[%emt 00:01:49]} 50. Re8 {[%clk 00:31:51]} {[%emt 00:00:54]} Rxb7
{[%clk 00:35:50]} {[%emt 00:00:10]} 51. Kd2 {[%clk 00:32:15]} {[%emt 00:00:06]}
Rd7+ {[%clk 00:36:11]} {[%emt 00:00:08]} 0-1

[Event "SS Manhem Chess Week 2019 Goteborg Open"]
[Site "Molnlycke kulturhus, Biblioteksgatan 2, Molnlycke, Sweden"]
[Date "2019.08.18"]
[Round "8.12"]
[White "Johnson, Daniel"]
[Black "Troedsson, Anton"]
[Result "0-1"]
[TimeControl "15 minutes + 5 seconds per move from move one (Round 1 - 4) / 90 minutes + 30 seconds per move from move one (Round 5 - 8)"]
[WhiteFideId "1721283"]
[BlackFideId "1746006"]
[WhiteElo "2201"]
[BlackElo "2045"]

1. d4 {[%clk 01:30:58]} {[%emt 00:00:01]} d5 {[%clk 01:30:43]} {[%emt
00:00:18]} 2. c4 {[%clk 01:30:52]} {[%emt 00:00:35]} c6 {[%clk 01:30:47]}
{[%emt 00:00:26]} 3. cxd5 {[%clk 01:30:20]} {[%emt 00:01:02]} cxd5 {[%clk
01:31:15]} {[%emt 00:00:02]} 4. Bf4 {[%clk 01:30:42]} {[%emt 00:00:08]} Nf6
{[%clk 01:30:48]} {[%emt 00:00:56]} 5. Nc3 {[%clk 01:30:51]} {[%emt 00:00:22]}
a6 {[%clk 01:30:55]} {[%emt 00:00:23]} 6. e3 {[%clk 01:30:55]} {[%emt
00:00:26]} Nc6 {[%clk 01:30:44]} {[%emt 00:00:41]} 7. Bd3 {[%clk 01:29:25]}
{[%emt 00:02:00]} g6 {[%clk 01:30:41]} {[%emt 00:00:33]} 8. h3 {[%clk
01:28:53]} {[%emt 00:01:02]} Bg7 {[%clk 01:31:04]} {[%emt 00:00:07]} 9. Nf3
{[%clk 01:29:00]} {[%emt 00:00:23]} O-O {[%clk 01:31:22]} {[%emt 00:00:10]} 10.
Rc1 {[%clk 01:28:29]} {[%emt 00:01:02]} b5 {[%clk 01:28:13]} {[%emt 00:03:40]}
11. O-O {[%clk 01:22:48]} {[%emt 00:06:10]} Bb7 {[%clk 01:28:34]} {[%emt
00:00:09]} 12. Qe2 {[%clk 01:19:22]} {[%emt 00:03:56]} Qb6 {[%clk 01:28:19]}
{[%emt 00:00:46]} 13. Bh2 {[%clk 01:17:43]} {[%emt 00:02:09]} Rfd8 {[%clk
01:27:28]} {[%emt 00:01:22]} 14. Rfd1 {[%clk 01:12:19]} {[%emt 00:05:54]} Rac8
{[%clk 01:27:47]} {[%emt 00:00:11]} 15. g4 {[%clk 01:06:35]} {[%emt 00:06:13]}
e6 {[%clk 01:24:13]} {[%emt 00:04:05]} 16. a3 {[%clk 01:03:02]} {[%emt
00:04:03]} Na5 {[%clk 01:24:04]} {[%emt 00:00:38]} 17. g5 {[%clk 00:56:04]}
{[%emt 00:07:28]} Ne8 {[%clk 01:22:32]} {[%emt 00:02:03]} 18. Be5 {[%clk
00:54:05]} {[%emt 00:02:29]} Nc4 {[%clk 01:17:15]} {[%emt 00:05:47]} 19. Bxg7
{[%clk 00:44:58]} {[%emt 00:09:36]} Nxg7 {[%clk 01:17:42]} {[%emt 00:00:03]} 20.
Nh2 {[%clk 00:32:03]} {[%emt 00:13:25]} Nf5 {[%clk 01:17:43]} {[%emt 00:00:29]}
21. Ng4 {[%clk 00:31:03]} {[%emt 00:01:29]} Kg7 {[%clk 01:18:00]} {[%emt
00:00:14]} 22. f4 {[%clk 00:14:28]} {[%emt 00:17:05]} Rh8 {[%clk 01:07:48]}
{[%emt 00:10:42]} 23. Kf2 {[%clk 00:10:33]} {[%emt 00:04:24]} h6 {[%clk
01:02:54]} {[%emt 00:05:24]} 24. Bxf5 {[%clk 00:07:06]} {[%emt 00:03:57]} exf5
{[%clk 01:03:22]} {[%emt 00:00:02]} 25. gxh6+ {[%clk 00:06:59]} {[%emt
00:00:37]} Kg8 {[%clk 01:03:02]} {[%emt 00:00:50]} 26. Ne5 {[%clk 00:01:07]}
{[%emt 00:06:23]} Rxh6 {[%clk 01:03:04]} {[%emt 00:00:28]} 27. b3 {[%clk
00:00:37]} {[%emt 00:00:59]} Nd6 {[%clk 01:02:16]} {[%emt 00:01:18]} 28. Kg2
{[%clk 00:00:34]} {[%emt 00:00:33]} Kg7 {[%clk 01:01:33]} {[%emt 00:01:14]} 29.
Qf3 {[%clk 00:00:44]} {[%emt 00:00:20]} Qa5 {[%clk 01:01:04]} {[%emt 00:00:58]}
30. Nb1 {[%clk 00:00:37]} {[%emt 00:00:38]} Rhh8 {[%clk 00:53:34]} {[%emt
00:08:00]} 31. Nd3 {[%clk 00:00:46]} {[%emt 00:00:21]} Ne4 {[%clk 00:52:51]}
{[%emt 00:01:12]} 32. Qe2 {[%clk 00:00:35]} {[%emt 00:00:40]} Qd8 {[%clk
00:51:37]} {[%emt 00:01:46]} 33. Rxc8 {[%clk 00:00:49]} {[%emt 00:00:16]} Bxc8
{[%clk 00:52:02]} {[%emt 00:00:06]} 34. Qe1 {[%clk 00:00:33]} {[%emt 00:00:45]}
Rh5 {[%clk 00:50:43]} {[%emt 00:01:49]} 35. Nd2 {[%clk 00:00:33]} {[%emt
00:00:30]} Qh8 {[%clk 00:50:58]} {[%emt 00:00:15]} 36. Qh1 {[%clk 00:00:34]}
{[%emt 00:00:30]} g5 {[%clk 00:51:22]} {[%emt 00:00:06]} 37. fxg5 {[%clk
00:00:33]} {[%emt 00:00:32]} Rxg5+ {[%clk 00:51:15]} {[%emt 00:00:36]} 38. Kh2
{[%clk 00:00:37]} {[%emt 00:00:26]} f4 {[%clk 00:41:22]} {[%emt 00:10:23]} 39.
Nxf4 {[%clk 00:00:33]} {[%emt 00:00:33]} Bxh3 {[%clk 00:37:42]} {[%emt
00:04:11]} 40. Nxh3 {[%clk 00:00:33]} {[%emt 00:00:30]} Qb8+ {[%clk 00:38:05]}
{[%emt 00:00:07]} 41. Nf4 {[%clk 00:00:44]} {[%emt 00:00:18]} Rh5+ {[%clk
00:38:29]} {[%emt 00:00:06]} 42. Kg2 {[%clk 00:00:58]} {[%emt 00:00:17]} Rxh1
{[%clk 00:38:57]} {[%emt 00:00:03]} 43. Rxh1 {[%clk 00:00:41]} {[%emt
00:00:47]} Nxd2 {[%clk 00:39:21]} {[%emt 00:00:06]} 44. Nh5+ {[%clk 00:00:44]}
{[%emt 00:00:26]} Kf8 {[%clk 00:35:29]} {[%emt 00:04:22]} 45. Nf6 {[%clk
00:01:06]} {[%emt 00:00:08]} Ke7 {[%clk 00:35:44]} {[%emt 00:00:14]} 0-1

[Event "SS Manhem Chess Week 2019 Goteborg Open"]
[Site "Molnlycke kulturhus, Biblioteksgatan 2, Molnlycke, Sweden"]
[Date "2019.08.18"]
[Round "8.13"]
[White "Pettersson, Anders"]
[Black "Ask, Josef"]
[Result "1/2-1/2"]
[TimeControl "15 minutes + 5 seconds per move from move one (Round 1 - 4) / 90 minutes + 30 seconds per move from move one (Round 5 - 8)"]
[BlackTitle "FM"]
[WhiteFideId "1715143"]
[BlackFideId "1704583"]
[WhiteElo "2104"]
[BlackElo "2136"]

1. d4 {[%clk 01:30:54]} {[%emt 00:00:04]} Nf6 {[%clk 01:27:30]} 2. c4 {[%clk
01:30:54]} d6 {[%clk 01:31:08]} {[%emt 05:03:24]} 3. b3 {[%clk 01:27:49]}
{[%emt 00:00:18]} g6 {[%clk 01:31:07]} {[%emt 00:00:31]} 4. Bb2 {[%clk
01:28:14]} {[%emt 00:00:05]} Bg7 {[%clk 01:31:32]} {[%emt 00:00:06]} 5. e3
{[%clk 01:28:19]} {[%emt 00:00:24]} O-O {[%clk 01:31:47]} {[%emt 00:00:15]} 6.
Nf3 {[%clk 01:28:44]} {[%emt 00:00:06]} e5 {[%clk 01:31:21]} {[%emt 00:00:55]}
7. dxe5 {[%clk 01:28:57]} {[%emt 00:00:16]} Nfd7 {[%clk 01:31:40]} {[%emt
00:00:12]} 8. Nc3 {[%clk 01:28:33]} {[%emt 00:00:54]} dxe5 {[%clk 01:31:48]}
{[%emt 00:00:22]} 9. Be2 {[%clk 01:28:40]} {[%emt 00:00:23]} a5 {[%clk
01:29:53]} {[%emt 00:02:25]} 10. O-O {[%clk 01:27:46]} {[%emt 00:01:24]} Na6
{[%clk 01:30:00]} {[%emt 00:00:24]} 11. Qc2 {[%clk 01:26:02]} {[%emt 00:02:14]}
Nb4 {[%clk 01:25:22]} {[%emt 00:05:09]} 12. Qc1 {[%clk 01:25:49]} {[%emt
00:00:42]} Nc5 {[%clk 01:19:07]} {[%emt 00:06:45]} 13. Rd1 {[%clk 01:21:19]}
{[%emt 00:04:59]} Qe7 {[%clk 01:16:57]} {[%emt 00:02:41]} 14. Nd5 {[%clk
01:17:59]} {[%emt 00:03:47]} 1/2-1/2

[Event "SS Manhem Chess Week 2019 Goteborg Open"]
[Site "Molnlycke kulturhus, Biblioteksgatan 2, Molnlycke, Sweden"]
[Date "2019.08.18"]
[Round "8.14"]
[White "Wiklund, Johan"]
[Black "Eriksson, Kristian"]
[Result "1/2-1/2"]
[TimeControl "15 minutes + 5 seconds per move from move one (Round 1 - 4) / 90 minutes + 30 seconds per move from move one (Round 5 - 8)"]
[WhiteFideId "1713817"]
[BlackFideId "1705172"]
[WhiteElo "1956"]
[BlackElo "2113"]

1. Nf3 {[%clk 01:30:58]} {[%emt 00:00:02]} Nf6 {[%clk 01:30:41]} {[%emt
00:00:17]} 2. c4 {[%clk 01:31:24]} {[%emt 00:00:06]} e6 {[%clk 01:30:53]}
{[%emt 00:00:17]} 3. Nc3 {[%clk 01:31:30]} {[%emt 00:00:24]} Bb4 {[%clk
01:30:42]} {[%emt 00:00:40]} 4. g3 {[%clk 01:30:59]} {[%emt 00:01:02]} O-O
{[%clk 01:29:16]} {[%emt 00:01:55]} 5. Bg2 {[%clk 01:31:20]} {[%emt 00:00:09]}
Bxc3 {[%clk 01:28:11]} {[%emt 00:01:35]} 6. bxc3 {[%clk 01:31:36]} {[%emt
00:00:15]} c5 {[%clk 01:26:58]} {[%emt 00:01:43]} 7. O-O {[%clk 01:30:39]}
{[%emt 00:01:26]} Nc6 {[%clk 01:25:53]} {[%emt 00:01:35]} 8. d4 {[%clk
01:30:51]} {[%emt 00:00:19]} Qa5 {[%clk 01:21:27]} {[%emt 00:04:56]} 9. Qc2
{[%clk 01:28:42]} {[%emt 00:02:38]} d6 {[%clk 01:11:56]} {[%emt 00:10:02]} 10.
Bf4 {[%clk 01:25:45]} {[%emt 00:03:26]} cxd4 {[%clk 01:07:27]} {[%emt
00:04:59]} 11. cxd4 {[%clk 01:26:05]} {[%emt 00:00:11]} e5 {[%clk 01:07:20]}
{[%emt 00:00:38]} 12. Bd2 {[%clk 01:25:54]} {[%emt 00:00:39]} Qc7 {[%clk
01:07:04]} {[%emt 00:00:45]} 13. d5 {[%clk 01:25:00]} {[%emt 00:01:25]} Ne7
{[%clk 01:04:42]} {[%emt 00:02:51]} 14. Rfc1 {[%clk 01:22:54]} {[%emt
00:02:37]} Bf5 {[%clk 00:54:46]} {[%emt 00:10:26]} 15. Qb3 {[%clk 01:23:04]}
{[%emt 00:00:20]} Ne4 {[%clk 00:51:33]} {[%emt 00:03:44]} 16. Be3 {[%clk
01:17:14]} {[%emt 00:06:19]} b6 {[%clk 00:49:54]} {[%emt 00:02:08]} 1/2-1/2

[Event "SS Manhem Chess Week 2019 Goteborg Open"]
[Site "Molnlycke kulturhus, Biblioteksgatan 2, Molnlycke, Sweden"]
[Date "2019.08.18"]
[Round "8.15"]
[White "Mitra, Akash"]
[Black "Andersson, Lars"]
[Result "1-0"]
[TimeControl "15 minutes + 5 seconds per move from move one (Round 1 - 4) / 90 minutes + 30 seconds per move from move one (Round 5 - 8)"]
[WhiteFideId "1726714"]
[BlackFideId "1706772"]
[WhiteElo "1937"]
[BlackElo "2003"]

1. e4 {[%clk 01:30:43]} {[%emt 00:00:16]} c6 {[%clk 01:30:56]} {[%emt
00:00:04]} 2. d4 {[%clk 01:30:47]} {[%emt 00:00:26]} d5 {[%clk 01:31:21]}
{[%emt 00:00:07]} 3. exd5 {[%clk 01:30:31]} {[%emt 00:00:45]} cxd5 {[%clk
01:31:43]} {[%emt 00:00:07]} 4. Bd3 {[%clk 01:30:53]} {[%emt 00:00:08]} Nc6
{[%clk 01:32:06]} {[%emt 00:00:06]} 5. c3 {[%clk 01:30:58]} {[%emt 00:00:25]}
Qc7 {[%clk 01:32:08]} {[%emt 00:00:28]} 6. Qb3 {[%clk 01:30:13]} {[%emt
00:01:16]} Nf6 {[%clk 01:28:38]} {[%emt 00:04:01]} 7. Bg5 {[%clk 01:29:48]}
{[%emt 00:00:54]} e6 {[%clk 01:26:23]} {[%emt 00:02:45]} 8. Nd2 {[%clk
01:29:10]} {[%emt 00:01:07]} Bd6 {[%clk 01:24:45]} {[%emt 00:02:08]} 9. Ngf3
{[%clk 01:29:04]} {[%emt 00:00:36]} Bd7 {[%clk 01:20:29]} {[%emt 00:04:46]} 10.
O-O {[%clk 01:28:10]} {[%emt 00:01:24]} Ng4 {[%clk 01:16:25]} {[%emt 00:04:35]}
11. h3 {[%clk 01:23:31]} {[%emt 00:05:09]} h6 {[%clk 01:16:23]} {[%emt
00:00:32]} 12. Be3 {[%clk 01:23:38]} {[%emt 00:00:22]} Nxe3 {[%clk 01:13:15]}
{[%emt 00:03:38]} 13. fxe3 {[%clk 01:23:45]} {[%emt 00:00:23]} Na5 {[%clk
01:08:19]} {[%emt 00:05:27]} 14. Qc2 {[%clk 01:22:13]} {[%emt 00:02:02]} Nc4
{[%clk 01:07:36]} {[%emt 00:01:13]} 15. Rae1 {[%clk 01:18:47]} {[%emt
00:03:56]} f5 {[%clk 01:00:04]} {[%emt 00:08:02]} 16. Bxc4 {[%clk 01:15:24]}
{[%emt 00:03:53]} dxc4 {[%clk 01:00:23]} {[%emt 00:00:11]} 17. e4 {[%clk
01:14:18]} {[%emt 00:01:35]} O-O {[%clk 00:56:57]} {[%emt 00:03:55]} 18. exf5
{[%clk 01:12:39]} {[%emt 00:02:09]} exf5 {[%clk 00:55:51]} {[%emt 00:01:37]} 19.
Ne5 {[%clk 01:11:53]} {[%emt 00:01:16]} Bxe5 {[%clk 00:49:51]} {[%emt
00:06:30]} 20. Rxe5 {[%clk 01:11:58]} {[%emt 00:00:25]} Rae8 {[%clk 00:49:56]}
{[%emt 00:00:26]} 21. Rc5 {[%clk 01:10:23]} {[%emt 00:02:05]} Qg3 {[%clk
00:45:59]} {[%emt 00:04:27]} 22. Nxc4 {[%clk 01:08:55]} {[%emt 00:03:02]} f4
{[%clk 00:33:58]} {[%emt 00:11:27]} 23. Qf2 {[%clk 01:07:04]} {[%emt 00:02:20]}
Qxf2+ {[%clk 00:34:04]} {[%emt 00:00:24]} 24. Rxf2 {[%clk 01:07:02]} {[%emt
00:00:32]} Re1+ {[%clk 00:34:02]} {[%emt 00:00:32]} 25. Kh2 {[%clk 01:07:07]}
{[%emt 00:00:24]} Be6 {[%clk 00:25:20]} {[%emt 00:09:12]} 26. b3 {[%clk
01:01:14]} {[%emt 00:06:23]} Bxc4 {[%clk 00:21:31]} {[%emt 00:04:19]} 27. Rxc4
{[%clk 00:59:51]} {[%emt 00:01:53]} Rf7 {[%clk 00:21:44]} {[%emt 00:00:17]} 28.
d5 {[%clk 00:56:40]} {[%emt 00:03:41]} Rd1 {[%clk 00:21:13]} {[%emt 00:01:00]}
29. Rcxf4 {[%clk 00:56:21]} {[%emt 00:00:50]} Rxf4 {[%clk 00:21:36]} {[%emt
00:00:07]} 30. Rxf4 {[%clk 00:56:47]} {[%emt 00:00:04]} Rxd5 {[%clk 00:22:01]}
{[%emt 00:00:06]} 31. Rf2 {[%clk 00:57:03]} {[%emt 00:00:13]} Rd3 {[%clk
00:22:10]} {[%emt 00:00:21]} 32. Rc2 {[%clk 00:57:26]} {[%emt 00:00:06]} Kf7
{[%clk 00:22:25]} {[%emt 00:00:15]} 33. c4 {[%clk 00:56:34]} {[%emt 00:01:23]}
Ke6 {[%clk 00:22:48]} {[%emt 00:00:06]} 34. Re2+ {[%clk 00:54:41]} {[%emt
00:02:22]} Kd6 {[%clk 00:22:52]} {[%emt 00:00:27]} 35. Re8 {[%clk 00:54:10]}
{[%emt 00:01:00]} Kd7 {[%clk 00:22:41]} {[%emt 00:00:43]} 36. Rg8 {[%clk
00:51:11]} {[%emt 00:03:29]} g5 {[%clk 00:23:05]} {[%emt 00:00:06]} 37. Rh8
{[%clk 00:50:07]} {[%emt 00:01:33]} Rd2 {[%clk 00:23:20]} {[%emt 00:00:15]} 38.
Rh7+ {[%clk 00:49:00]} {[%emt 00:01:37]} Kc8 {[%clk 00:23:03]} {[%emt
00:00:47]} 39. Rxh6 {[%clk 00:49:24]} {[%emt 00:00:06]} Rxa2 {[%clk 00:23:30]}
{[%emt 00:00:03]} 40. Rg6 {[%clk 00:49:31]} {[%emt 00:00:21]} Rb2 {[%clk
00:23:05]} {[%emt 00:00:57]} 41. Rxg5 {[%clk 00:49:56]} {[%emt 00:00:06]} Rxb3
{[%clk 00:23:29]} {[%emt 00:00:06]} 42. h4 {[%clk 00:50:00]} {[%emt 00:00:25]}
Rc3 {[%clk 00:23:51]} {[%emt 00:00:09]} 43. h5 {[%clk 00:47:39]} {[%emt
00:02:50]} Rxc4 {[%clk 00:24:07]} {[%emt 00:00:15]} 44. g3 {[%clk 00:46:24]}
{[%emt 00:01:46]} Rc7 {[%clk 00:24:17]} {[%emt 00:00:19]} 45. Rg8+ {[%clk
00:46:42]} {[%emt 00:00:12]} 1-0